{"text_format":"3","workbook":"xlsx","n_sheets":1,"sheets":["PRICING SCHEDULE"],"not_rendered":{"images":1,"defined_names":2},"read":"whole","date_system":"1900"}

{"sheet":"PRICING SCHEDULE","index":0,"n_rows":39,"n_cols":7,"rows_kept":39,"merged":[[10,3,10,5],[35,1,38,1],[35,3,35,4],[37,3,37,4],[38,3,38,4]]}
[null,"SUPPLY CHAIN MANAGEMENT"]
[null,"Pricing schedule"]
["RFB No","RFB 3223-2025"]
["RFB Title","APPOINTMENT OF A SERVICE PROVIDER FOR THE PROVISION OF CATERING AND LOGISTICAL EQUIPMENT FOR THE DELIVERY OF THE 2026 SITA CORPORATE WELLNESS DAY FOR A ONCE OFF PERIOD"]
["Bidder Name "]
[]
["1. INSTRUCTION FOR COMPLETING THE PRICING SCHEDULE"]
["(a)  Bidder must complete/enter YELLOW cells only"]
["(b)  Unit and Line prices must be VAT EXCLUSIVE and in South African Rand (ZAR) currency."]
["(c) The price must include all cost to deliver the goods or render the service, including all applicable taxes, duty fees, logistics/delivery, storage, labour, overtime and subsistence and travel"]
[]
["Item No","Goods/Service Description","Unit of measure","Qty ","Unit Price \n(Excl VAT)","Line Price ","Price clarification comment"]
[1,"Goods and Services ",{"$nulls":3},{"$f":"SUBTOTAL(9,F14:F23)","v":0}]
["1.1","Marquee (15X20)         ","EA",1,0,{"$f":"D14*E14","v":0}]
["1.2","Chairs","EA",500,0,{"$f":"D15*E15","v":0}]
["1.3","Tables","EA",25,0,0]
["1.4","Table cloths","EA",25,0,0]
["1.5","Mobile Toilets","EA",3,0,0]
["1.6","Paraplegic Mobile Toilet","EA",1,0,0]
["1.7","Sound/PA System, Mic & Music ","EA",1,0,0]
["1.8","Fire Extinguishers","EA",4,0,0]
["1.9","Gazebos","EA",25,0,0]
["1.10","Generator","EA",1,0,0]
[2,"Catering ",{"$nulls":3},{"$f":"SUBTOTAL(9, F25:F26)","v":0}]
["2.1","Breakfast Pack (as stipulated in 2.1(2))","EA",1500,0,{"$f":"D25*E25","v":0}]
["2.2","Braai Lunch Pack (as stipulated in 2.1(2))","EA",1500,0,0]
[3,"Transport ",{"$nulls":3},{"$f":"SUBTOTAL(9, F28:F28)","v":0}]
["3.1","Transport for employees SITA offices ","EA",2,0,{"$f":"D28*E28","v":0}]
[4,"Sign Language Interpretation",{"$nulls":3},{"$f":"SUBTOTAL(9, F30:F30)","v":0}]
["4.1 ","Sign Language Interpreters ","EA",2,0,0]
[null,"TOTAL BID PRICE  (EXCL VAT)",{"$nulls":3},{"$f":"SUBTOTAL(9,F13:F30)","v":0}]
[null,"VAT (@15%)",{"$nulls":3},{"$f":"F31*0.15","v":0}]
[null,"TOTAL  BID PRICE (INCL VAT)",{"$nulls":3},{"$f":"F31+F32","v":0}]
[]
[]
[null,"I, the bidder, confirm that the price(s) and rate(s) quoted cover all the goods and/or works specified in the bidding documents; that the price(s) or rate(s) cover all my obligations and I accept that any mistakes regarding price(s), rate(s) or calculations will be at my own risk.\n[Note: First convert to PDF, then add signature]"]
[null,null,"Name","Capacity"]
[]
[null,null,"Signature (above)","Date"]